Cogmind - Beta 13 @@@ ROGUE MODE // 2024.04.22 @ 18:39:36 Player: Olafz Result: Destroyed by as-18243 with Assembled Blade Performance ------------- Evolutions (0) 0 Regions Visited (2) 400 Robots Destroyed (12) 60 Value Destroyed (349) 349 Prototype IDs (0) 0 Alien Tech Used (0) 0 Bonus (-128) -128 TOTAL SCORE: 681 Bonus ------- Friendly Fire -128 Cogmind --------- Core Integrity 0/250 Matter 290/300 Energy 256/265 System Corruption 0% Temperature Warm (152) Movement Treading (320) Ox2 Location -10/Mines Parts ------- > --- POWER (1) -------- Improved Ion Engine > --- PROPULSION (2) --- Light Treads > --- UTILITY (2) ------ High-capacity Storage Unit > --- WEAPON (2) ------- Beam Rifle Hammer > --- INVENTORY (20) --- Ion Engine Light Ion Engine Light Ion Engine Improved Ion Engine Light Treads Light Treads Aluminum Leg Aluminum Leg Aluminum Leg Wheel Compact Wheel Heat Sink Small Storage Unit Sensor Array Sensor Array Heavy Assault Rifle Peak State ------------ > --- POWER ------------ Improved Ion Engine > --- PROPULSION ------- Light Treads Light Treads > --- UTILITY ---------- Improved Heat Sink High-capacity Storage Unit > --- WEAPON ----------- Medium Laser Beam Rifle > --- INVENTORY -------- Ion Engine Light Ion Engine Light Ion Engine Light Treads Aluminum Leg Aluminum Leg Aluminum Leg Wheel Compact Wheel Heat Sink Small Storage Unit Sensor Array Sensor Array [Rating: 12] Favorites ----------- Power Ion Engine Engine Ion Engine Propulsion Light Treads Treads Light Treads Leg Aluminum Leg Utility High-capacity Storage Unit Device Improved Heat Sink Storage High-capacity Storage Unit Weapon Medium Laser Energy Gun Medium Laser Impact Weapon Hammer Build | -11 -10 -10 ------- Run | Yrd Mat Min Slots Evolved . | . . . Power . | . . . Propulsion . | . . . Utility . | . . . Weapon . | . . . Parts Attached 17 | . 13 4 Power 3 | . 2 1 Engine 3 | . 2 1 Core . | . . . Reactor . | . . . Propulsion 7 | . 6 1 Treads 6 | . 5 1 Leg 1 | . 1 . Wheel . | . . . Hover . | . . . Flight . | . . . Utility 3 | . 3 . Device 2 | . 2 . Storage 1 | . 1 . Processor . | . . . Hackware . | . . . Protection . | . . . Artifact . | . . . Weapon 4 | . 2 2 Energy Gun 3 | . 2 1 Energy Cannon . | . . . Ballistic Gun . | . . . Ballistic Cannon . | . . . Launcher . | . . . Special Weapon . | . . . Impact Weapon 1 | . . 1 Slashing Weapon . | . . . Piercing Weapon . | . . . Special Melee Weapon . | . . . Unidentified Prototypes . | . . . Parts Lost 4 | . . 4 Power . | . . . Propulsion 1 | . . 1 Utility 1 | . . 1 Weapon 2 | . . 2 Highest Loss Streak 3 | . . 3 To Critical Strikes . | . . . Average Slot Usage (%) 97 | . 97 97 Engine 13 | . 13 14 Treads 25 | . 24 27 Leg 1 | . 2 . Device 12 | . 12 13 Storage 14 | . 14 14 Energy Gun 27 | . 28 27 Naked Turns . | . . . Heaviest Build 53 | 11 50 53 Greatest Support 40 | 20 40 40 Greatest Overweight (x) 16 | . 16 2 Average Overweight (x) . | . . 1 Largest Inventory Capacity 20 | . 20 20 Average Capacity 19 | . 18 20 Most Carried 17 | . 12 17 Average Carried 12 | . 10 15 Final Capacity 20 | 8 20 20 Final Carried 16 | 6 12 16 Class Distribution -------------------- 71% | Mutant 28% | Scavenger-Mutant Dominant Class ---------------- Mutant | -10/Materials Scavenger-Mutant | -10/Mines Resources | -11 -10 -10 ----------- Run | Yrd Mat Min Matter Collected 345 | 200 80 65 Remotely . | . . . Salvage Created 516 | . 308 208 Parts 36 | . 26 10 Haulers Intercepted . | . . . Recyclers Shooed . | . . . Parts Field Recycled . | . . . Retrieved Matter . | . . . Parts Self-Destructed . | . . . Prevented . | . . . Kills | -11 -10 -10 ------- Run | Yrd Mat Min Combat Hostiles Destroyed 9 | . 5 4 Guns 8 | . 4 4 AOE 1 | . 1 . Classes Destroyed 5 | . 3 2 Builder 1 | . 1 . Watcher 3 | . 3 . Grunt 5 | . 5 . Sentry 2 | . . 2 Assembled 2 | . . 2 Thug 1 | . . 1 Best Kill Streak 2 | . 2 2 Combat Bots Only 2 | . 1 2 Max Kills in Single Turn 1 | . 1 1 Gunslinging . | . . . Exploded 1 | . 1 . Melee . | . . . Uniques/NPCs Destroyed . | . . . Combat | -11 -10 -10 -------- Run | Yrd Mat Min Hostile Shots Fired 65 | . 18 47 Missed 14 | . 4 10 Damage Taken 897 | . 258 639 Core 270 | . 109 161 Absorbed by Shields . | . . . Core Remaining (%) 100 | 100 . . Volleys Fired 33 | . 18 15 Largest 2 | . 2 2 Hottest 106 | . 90 106 Shots Fired 60 | . 36 24 Gun 60 | . 36 24 Cannon . | . . . Launcher . | . . . Special . | . . . Kinetic . | . . . Thermal 41 | . 18 23 Explosive . | . . . Electromagnetic 19 | . 18 1 Robot Hit Streak 11 | . 11 7 Robot Miss Streak 3 | . 2 3 Penetration Max . | . . . Secondary Targets 1 | . . 1 Max Gunslinging Chain 1 | . . 1 Shots Hit Robots 44 | . 27 17 Core Hits 23 | . 14 9 Critical Kills . | . . . Critical Parts Destroyed . | . . . Critical Strikes 3 | . 1 2 Burn 3 | . 1 2 Melee Attacks . | . . . Impact . | . . . Slashing . | . . . Piercing . | . . . Sneak Attacks . | . . . Combat Hostiles . | . . . Follow-up Attacks . | . . . Damage Inflicted 764 | . 512 252 Guns 622 | . 370 252 Cannons . | . . . Explosions 127 | . 127 . Melee . | . . . Ramming 15 | . 15 . Kinetic . | . . . Thermal 422 | . 182 240 Explosive . | . . . Electromagnetic 327 | . 315 12 Impact . | . . . Slashing . | . . . Piercing . | . . . Highest Corruption . | . . . Average Corruption . | . . . Corruption Purged . | . . . Corruption Blocked . | . . . Overload Shots . | . . . Overflow Damage . | . . . Projectiles . | . . . Explosions . | . . . Melee . | . . . Knockbacks . | . . . Impact . | . . . Kinetic . | . . . Secondary . | . . . Self-Inflicted Damage 79 | . 79 . Shots 2 | . 2 . Rammed . | . . . Targets Rammed 1 | . 1 . Kicked . | . . . Crushed 1 | . 1 . Highest Temperature 162 | . 30 162 Average Temperature 43 | . 8 67 Received Heat Transfer 204 | . 105 99 Siege Activations . | . . . Robots Corrupted . | . . . Combat Hostiles . | . . . Parts Fried . | . . . Impact Corruptions . | . . . Robots Melted . | . . . Combat Hostiles . | . . . Parts Melted 3 | . 2 1 Heat Transferred 1332 | . 518 814 Parts Sabotaged . | . . . Parts Stolen . | . . . Parts Stripped . | . . . Power Chain Reactions 1 | . 1 . Alert | -11 -10 -10 ------- Run | Yrd Mat Min Peak Influence 187 | . 187 45 Initial . | . . . Average 56 | . 80 20 Maximum Alert Level . | . . . Low Security (%) 100 | . 100 100 Level 1 . | . . . Level 2 . | . . . Level 3 . | . . . Level 4 . | . . . Level 5 . | . . . High Security . | . . . Max Security . | . . . Squads Dispatched 2 | . 2 . Investigation 2 | . 2 . Extermination . | . . . Reinforcement . | . . . Assault . | . . . Garrison . | . . . Intercept . | . . . Searches Triggered . | . . . Construction Impeded . | . . . Haulers Reinforced . | . . . Active Scanning Responses . | . . . Cargo Convoy Interrupts . | . . . Stealth | -11 -10 -10 --------- Run | Yrd Mat Min Distress Signals . | . . . Communications Jammed . | . . . Distress Signals . | . . . Times Spotted 24 | . 13 11 Peak Tracking Total 5 | . 3 5 Tactical Retreats 2 | . 2 . Traps | -11 -10 -10 ------- Run | Yrd Mat Min Traps Triggered 5 | . 5 . Indirectly . | . . . Trap Hack Attempts . | . . . Triggered . | . . . Disarmed . | . . . Reprogrammed . | . . . Reused . | . . . Traps Extracted . | . . . Installed . | . . . Triggered . | . . . Machines | -11 -10 -10 ---------- Run | Yrd Mat Min Machines Disabled 1 | . 1 . Max in Single Turn 1 | . 1 . Machines Repaired . | . . . Machines Dismantled . | . . . Machines Sabotaged . | . . . Overloaded Fab Kills . | . . . Hacking | -11 -10 -10 --------- Run | Yrd Mat Min Machines Accessed 4 | . 4 . Terminals 4 | . 4 . Fabricators . | . . . Repair Stations . | . . . Recycling Units . | . . . Scanalyzers . | . . . Garrison Access . | . . . Total Hacks 8 | . 8 . Successful 4 | . 4 . Failed 4 | . 4 . Catastrophic . | . . . Database Lockouts . | . . . Manual 8 | . 8 . Terminals 8 | . 8 . Fabricators . | . . . Repair Stations . | . . . Recycling Units . | . . . Scanalyzers . | . . . Garrison Access . | . . . Terminal Hacks . | . . . Fabricator Hacks . | . . . Repair Station Hacks . | . . . Recycling Unit Hacks . | . . . Scanalyzer . | . . . Garrison Access Hacks . | . . . Unauthorized Hacks 4 | . 4 . Terminals 4 | . 4 . Track 2 | . 2 . Botnet 2 | . 2 . Fabricators . | . . . Repair Stations . | . . . Recycling Units . | . . . Scanalyzers . | . . . Garrison Access . | . . . Data Cores Recovered . | . . . Used . | . . . Hacking Detections 2 | . 2 . Full Trace Events . | . . . Feedback Events . | . . . Feedback Blocked . | . . . Robot Schematics Acquired . | . . . Robots Built . | . . . Authchips . | . . . Time . | . . . Total Robot Build Rating . | . . . Part Schematics Acquired . | . . . Parts Built . | . . . Authchips . | . . . Time . | . . . Total Part Build Rating . | . . . Parts Repaired . | . . . Time . | . . . Parts Recycled . | . . . Recycled Matter . | . . . Retrieved Matter . | . . . Retrieved Components . | . . . Parts Scanalyzed . | . . . Part Schematics Acquired . | . . . Parts Damaged . | . . . Bothacking | -11 -10 -10 ------------ Run | Yrd Mat Min Used RIF Installer . | . . . Robots Hacked . | . . . Non-combat . | . . . Combat . | . . . Robot Hacks Applied . | . . . Relay Couplers Released . | . . . Fabnet Peak Effective % . | . . . Robots Rewired . | . . . Allies Hacked . | . . . Hacks Repelled . | . . . Allies | -11 -10 -10 -------- Run | Yrd Mat Min Total Allies 2 | . . 2 Largest Group 2 | . . 2 Highest-Rated Group 43 | . . 43 Highest-Rated Ally 31 | . . 31 Total Orders . | . . . Ally Attacks 9 | . . 9 Total Damage 148 | . . 148 Kills 4 | . . 4 Allies Corrupted . | . . . Allies Melted . | . . . Intel | -11 -10 -10 ------- Run | Yrd Mat Min Robot Analysis Total . | . . . Derelict Logs Recovered . | . . . Drone Launches . | . . . Drone Recoveries . | . . . Exploration | -11 -10 -10 ------------- Run | Yrd Mat Min Turns Passed 1419 | . 841 578 Spaces Moved 563 | 1 342 220 Core 2 | . 2 . Treads 497 | . 277 220 Legs 64 | 1 63 . Wheels . | . . . Hover . | . . . Flight . | . . . Fastest Speed 120 | 120 120 240 Average Speed 229 | 120 222 241 Slowest Speed 850 | 120 850 320 Overloaded Moves . | . . . Propulsion Burnouts . | . . . Robots Hopped . | . . . Cave-ins Triggered . | . . . Exploration Rate (%) 34 | 1 61 41 Regions Visited 2 Branch Regions 1 Pre-discovered Areas . | . . . Known Exits Taken . | . . . Unknown Exits Taken 2 | 1 1 . Scrap Searched . | . . . Spaces Dug . | . . . Terrain Destroyed 7 | . 7 . Melee . | . . . Projectile . | . . . AOE 7 | . 7 . Terrain Rammed . | . . . Walls Destroyed . | . . . Machines Disabled . | . . . Actions | -11 -10 -10 --------- Run | Yrd Mat Min Total 627 | . 384 243 Wait 2 | . 1 1 Move 561 | . 341 220 Hop . | . . . Pick Up 7 | . 4 3 Fast Attach 8 | . 7 1 Attach 5 | . 4 1 Detach 5 | . 5 . Swap 4 | . 2 2 Drop 1 | . 1 . Fire 33 | . 18 15 Melee . | . . . Ram . | . . . Kick . | . . . Crush 1 | . 1 . Escape Stasis . | . . . Rewire . | . . . Trap . | . . . Miscellaneous . | . . . Route ------- -11/Scrapyard -10/Materials (discovered 3 exits: [*Mat] / [*Min x2]) -10/Mines (discovered 3 exits: [*Mat x2] / [*Exi]) History --------- Turn | Location | Event 1 | -11/Scrapyard | Discovered new exit (range 0) 1 | -11/Scrapyard | Entered Materials 1 | -10/Materials | Discovered new exit (range 7) 301 | -10/Materials | Discovered new exit (range 13) 310 | -10/Materials | Build established: Mutant 818 | -10/Materials | Discovered new exit (range 11) 842 | -10/Materials | Entered Mines 912 | -10/Mines | Discovered new exit (range 11) 974 | -10/Mines | Core integrity fell below 50% 1103 | -10/Mines | Discovered new exit (range 7) 1122 | -10/Mines | Deemed a non-threat by the Exiles lab entrance 1122 | -10/Mines | Discovered new exit (range 5) 1280 | -10/Mines | Build established: Scavenger-Mutant 1368 | -10/Mines | Assembled infested the area 1373 | -10/Mines | Assisted by a Guerilla fighting off Assembled 1419 | -10/Mines | Core integrity fell below 20% 1420 | -10/Mines | Destroyed by as-18243 with Assembled Blade Last Messages --------------- ALERT: Infestation in the mines, dispatching Demolisher response squad. A derelict emerges from the shadows: "You need to get out of here! I've been tracking a group of Assembled to figure out where they're coming from, and they're closing on this area, come on!" as-61077 destroyed. Imp. Heat Sink destroyed. as-09122 destroyed. Lgt. Treads destroyed. as-68897 destroyed. Switching to secondary target: as-62854. as-63919 suffers critical hit (Burn). as-63919 destroyed. as-62854 destroyed. as-84913 suffers critical hit (Burn). as-84913 destroyed. Acquired 11 matter. NB-LNZ(z) destroyed. 22-2X6(g) suffers critical hit (Burn). 22-2X6(g) destroyed. Med. Laser destroyed. Map ----- +----------------------------------------------------+ | ?????????????????????????????????????????????????? | | ?????????????????????????????????????????????????? | | ?????????????????????????????????????????????????? | | ?????????????????????????????????????????????????? | | ?????????????????????????????????????????????????? | | ?????????????????????????????????????????????????? | | ?????????????????????????????????????????????????? | | ?????????????????????????????????????????????????? | | ?????????????????????????????????????????????????? | | ?????????????????????????????????????????????????? | | ?????????????????????????????????????????????????? | | ?????????????????????????????????????????????????? | | ?????????????????????????????????????????????????? | | ?????????????????????????????#???????????????????? | | ???????????????????????????? ##??????????????????? | | ???????????????????????????? #??????????????????? | | ??????????????????????? ##?????????????????? | | ?????????????????? ##????????????????? | | ?????????????????? %* #????????????????? | | ### ### ?????????????????? = #????????????????? | | ##???#????????????????????# #?????????????????? | | ##?????????????##########aa #??????????????????? | | ##????????????# !%%* ##?????????????????? | | ##???????????# %==% ###???????????????? | | ############# ## % a #???????????????? | | ### @ ### #??????????????? | | #?## ##????? #?????????????? | | ########## ########??######?????????????????????? | | #???????? ???????????????????????????????????????? | | ?????????????????????????????####????????????????? | | ????????????????#####???###### ##???????????????? | | ???????????????## ##?## ## ##??????????????? | | ?#######???##### ### #??????????????? | | ## ##??# #??????????????? | | #### ### ##??????????????? | | # < #### ##?# ###???????????????? | | # #??## ##??# #?????????????????? | | # #### ####???# < #???# #?????????????????? | | # #??# #??????## ##???# #?????????????????? | | ## #??# #???????## ###????# #?????????????????? | | ?## ##??# #????????# ##???# #####?????????????? | | #?####???# #????????### #???# #?????????????? | | ##???????# #??????????# ##???##### #?????????????? | | #####???# #?????????? #????????# #?###?????????? | | ##??# #?????????? ##????????# ## ##????????? | | #### #?????????< ?????????## #????????? | | #?????????##?????????# #????????? | | #######???????????????????# #????????? | | #####?????????????????????????# ##????????? | | ##?????????????????????????????## ##?????????? | +----------------------------------------------------+ Best States ------------- Heat Dissipation 39 Energy Generation 12 Energy Capacity 265 Matter Stores 300 Matter Capacity 300 Sight Range 16 Terrain Scan Density 10 Evasion (%) 55 Recoil Reduction 2 Item Schematics ----------------- None Robot Schematics ------------------ None Fabricated ------------ Nothing Alien Tech Used ----------------- None Achievements -------------- None Challenges ------------ None Game ------ Seed AlphaSwarmGuard Manual? 0 Play Time 00:09:25 Cumulative 78.3 hours Start 2024.04.22 @ 18:25:36 End 2024.04.22 @ 18:39:36 Sessions 1 Manual Loads 0 Difficulty Rogue Special Mode None Game No. 162 Rogue 160 Adventurer 2 Explorer 0 Win Type - Total 2 Types 2/0/0/0/0/0/0/0/0 Lore% 49 Gallery% 49 Achievement% 37 Wizard Run 0 Options --------- Layout 0 ASCII 0 Keyboard 1 Movement Numpad Keybinds 1 Fullscreen 2 Font 18/SmallcapsGlow Map View 76x50 Zoom Use 0% Tactical HUD 1 Map Filters NONE Filters NONE Steam 1 RUN: 27e8c378-5eb7-40e8-a18a-a87d89c5b6d2